fUST/lending_fUST_20240122
["ID","MTS","AMOUNT","RATE_DAILY","PERIOD"]
[312456734,1705897844779,-160.0,0.00036808,21]
[312456735,1705897844789,-157.894736,0.00036834,2]
[312456736,1705897844798,-228.80392522,0.00037,4]
[312456737,1705897844807,-296.0,0.00037,5]
[312456738,1705897844816,-1006.9,0.00037,6]
[312456739,1705897844826,-160.0,0.00037071,22]
[312456740,1705897844835,-242.18206036,0.000371,5]
[312456741,1705897844845,-242.18206036,0.000371,5]
[312456742,1705897844855,-150.88329784,0.00037235,7]
[312456743,1705897844864,-160.0,0.00037334,23]
[312456744,1705897844874,-304.36813144,0.00037334,5]
[312456745,1705897844884,-151.0,0.00037341,4]
[312456746,1705897844893,-157.894736,0.00037443,2]
[312456747,1705897844902,-358.087998,0.00037573,2]
[312456748,1705897844912,-358.087998,0.00037573,2]
[312456749,1705897844921,-445.675978,0.00037573,2]
[312456750,1705897844931,-19713.0,0.00037777,7]
[312456751,1705897844941,-242.18206036,0.000378,5]
[312456752,1705897844950,-227.29006127,0.000378,5]
[312456753,1705897844959,-500.0,0.000379,7]
[312456754,1705897844969,-151.0,0.00037921,4]
[312456755,1705897844978,-10000.0,0.00037999,2]
[312456756,1705897844987,-10000.0,0.00037999,2]
[312456757,1705897844999,-10000.0,0.00037999,2]
[312456758,1705897845009,-10000.0,0.00037999,2]
[312456759,1705897845019,-10000.0,0.00037999,2]
[312456760,1705897845028,-10000.0,0.00037999,2]
[312456761,1705897845038,-2139.23248446,0.00038,4]
[312456762,1705897845047,-154.73694719,0.00038,2]
[312456763,1705897845057,-50000.0,0.00038,2]
[312456764,1705897845066,-50000.0,0.00038,2]
[312456765,1705897845076,-600.0,0.00038,7]
[312456766,1705897845085,-10845.09052978,0.00038,3]
[312456767,1705897845094,-2000.0,0.00038,4]
[312456768,1705897845104,-1008.68,0.00038,7]
[312456769,1705897845113,-12374.37058308,0.00038,7]
[312456770,1705897845123,-358.087998,0.00038,2]
[312456771,1705897845132,-358.087998,0.00038,2]
[312456772,1705897845142,-357.383015,0.00038,2]
[312456773,1705897845151,-357.383015,0.00038,2]
[312456774,1705897845161,-500.0,0.00038,2]
[312456775,1705897845171,-500.0,0.00038,2]
[312456776,1705897845181,-316.871441,0.00038,2]
[312456777,1705897845190,-316.871441,0.00038,2]
[312456778,1705897845199,-151.0,0.00038,2]
[312456779,1705897845209,-151.0,0.00038,2]
[312456780,1705897845218,-598.464061,0.00038,2]
[312456781,1705897845228,-598.464061,0.00038,2]
[312456782,1705897845238,-157.25543227,0.00038,7]
[312456783,1705897845249,-10000.0,0.00038,2]
[312456784,1705897845259,-10000.0,0.00038,2]
[312456785,1705897845269,-10000.0,0.00038,2]
[312456786,1705897845278,-10000.0,0.00038,2]
[312456787,1705897845288,-10000.0,0.00038,2]
[312456788,1705897845297,-10000.0,0.00038,2]
[312456789,1705897845306,-172.373955,0.00038014,2]
[312456790,1705897845315,-157.894736,0.00038052,2]
[312456791,1705897845325,-5000.0,0.00038333,2]
[312456792,1705897845334,-1000.0,0.00038356,2]
[312456793,1705897845343,-1000.0,0.00038356,2]
[312456794,1705897845352,-1000.0,0.00038356,2]
[312456795,1705897845362,-1000.0,0.00038356,2]
[312456796,1705897845371,-1000.0,0.00038356,2]
[312456797,1705897845381,-1000.0,0.00038356,2]
[312456798,1705897845390,-1000.0,0.00038356,2]
[312456799,1705897845399,-1000.0,0.00038356,2]
[312456800,1705897845409,-1000.0,0.00038356,2]
[312456801,1705897845418,-1000.0,0.00038356,2]
[312456802,1705897845427,-1000.0,0.00038356,2]
[312456803,1705897845435,-1000.0,0.00038356,2]
[312456804,1705897845444,-1000.0,0.00038356,2]
[312456805,1705897845453,-1000.0,0.00038356,2]
[312456806,1705897845463,-1000.0,0.00038356,2]
[312456807,1705897845472,-1000.0,0.00038356,2]
[312456808,1705897845481,-1000.0,0.00038356,2]
[312456809,1705897845491,-1000.0,0.00038356,2]
[312456810,1705897845500,-1000.0,0.00038356,2]
[312456811,1705897845509,-1000.0,0.00038356,2]
[312456812,1705897845518,-1000.0,0.00038356,2]
[312456813,1705897845526,-1000.0,0.00038356,2]
[312456814,1705897845535,-1000.0,0.00038356,2]
[312456815,1705897845544,-174.34899218,0.00038356,2]
[312456816,1705897845553,-445.675978,0.00038454,2]
[312456817,1705897845563,-50000.0,0.000385,2]
[312456818,1705897845572,-50000.0,0.000385,2]
[312456819,1705897845581,-358.087998,0.000385,2]
[312456820,1705897845591,-358.08799455,0.000385,2]
[312456821,1705897845600,-357.383015,0.000385,2]
[312456822,1705897845609,-357.383015,0.000385,2]
[312456823,1705897845618,-500.0,0.000385,2]
[312456824,1705897845627,-500.0,0.000385,2]
[312456825,1705897845636,-316.871441,0.000385,2]
[312456826,1705897845645,-316.871441,0.000385,2]
[312456827,1705897845654,-151.0,0.000385,2]
[312456828,1705897845664,-232.881258,0.000385,2]
[312456829,1705897845673,-598.464061,0.000385,2]
[312456831,1705897845684,-598.464061,0.000385,2]
[312456833,1705897845693,-281.44981779,0.000385,8]
[312456834,1705897845704,-10000.0,0.000385,2]
[312456836,1705897845715,-10000.0,0.000385,2]
[312456838,1705897845725,-10000.0,0.000385,2]
[312456840,1705897845734,-10000.0,0.000385,2]
[312456842,1705897845744,-10000.0,0.000385,2]
[312456844,1705897845752,-10000.0,0.000385,2]
[312456845,1705897845761,-151.0,0.00038502,4]
[312456846,1705897845771,-597.14788468,0.0003863,31]
[312456848,1705897845780,-500.0,0.0003863,31]
[312456849,1705897845790,-500.0,0.0003863,7]
[312456850,1705897845800,-500.0,0.0003863,31]
[312456851,1705897845809,-500.0,0.0003863,31]
[312456852,1705897845818,-500.0,0.0003863,31]
[312456853,1705897845828,-439.45148265,0.0003863,31]
[312456854,1705897845837,-501.68691606,0.0003863,7]
[312456855,1705897845846,-504.16741513,0.0003863,31]
[312456856,1705897845855,-500.0,0.0003863,31]
[312456857,1705897845864,-500.0,0.0003863,31]
[312456858,1705897845873,-243.36415622,0.0003863,31]
[312456859,1705897845883,-500.0,0.0003863,31]
[312456860,1705897845892,-500.0,0.0003863,31]
[312456861,1705897845901,-502.51932365,0.0003863,2]
[312456862,1705897845911,-500.0,0.0003863,31]
[312456863,1705897845920,-888.88,0.0003863,31]
[312456864,1705897845929,-500.0,0.0003863,31]
[312456865,1705897846037,-500.0,0.0003863,31]
[312456866,1705897846047,-500.0,0.0003863,31]
[312456867,1705897846056,-604.64,0.0003863,31]
[312456868,1705897846065,-500.0,0.0003863,7]
[312456869,1705897846074,-500.0,0.0003863,31]
[312456870,1705897846083,-500.0,0.0003863,31]
[312456871,1705897846093,-500.0,0.0003863,31]
[312456872,1705897846102,-959.11,0.0003863,31]
[312456873,1705897846112,-500.0,0.0003863,31]
[312456874,1705897846125,-1158.88,0.0003863,31]
[312456875,1705897846134,-500.0,0.0003863,31]
[312456876,1705897846144,-500.0,0.0003863,31]
[312456877,1705897846154,-504.68488454,0.0003863,31]
[312456878,1705897846164,-652.87,0.0003863,31]
[312456879,1705897846173,-500.0,0.0003863,31]
[312456880,1705897846183,-500.0,0.0003863,31]
[312456881,1705897846193,-500.0,0.0003863,31]
[312456882,1705897846202,-500.0,0.0003863,31]
[312456883,1705897846212,-501.77657072,0.0003863,31]
[312456884,1705897846222,-500.0,0.0003863,31]
[312456885,1705897846231,-500.0,0.0003863,31]
[312456886,1705897846242,-404.29414215,0.0003863,31]
[312456887,1705897846252,-509.63994834,0.0003863,31]
[312456888,1705897846261,-500.0,0.0003863,31]
[312456889,1705897846270,-500.0,0.0003863,31]
[312456890,1705897846280,-500.0,0.0003863,31]
[312456891,1705897846290,-582.01,0.0003863,31]
[312456892,1705897846299,-500.0,0.0003863,31]
[312456893,1705897846309,-500.3761187,0.0003863,31]
[312456894,1705897846319,-500.0,0.0003863,31]
[312456895,1705897846329,-500.0,0.0003863,31]
[312456896,1705897846339,-500.0,0.0003863,31]
[312456897,1705897846348,-500.0,0.0003863,31]
[312456898,1705897846358,-501.5374226,0.0003863,31]
[312456899,1705897846367,-596.94099766,0.0003863,31]
[312456900,1705897846377,-502.99426659,0.0003863,31]
[312456901,1705897846386,-500.0,0.0003863,31]
[312456902,1705897846396,-500.0,0.0003863,31]
[312456903,1705897846405,-561.82349144,0.0003863,31]
[312456904,1705897846415,-500.0,0.0003863,31]
[312456905,1705897846424,-10034.30202826,0.0003863,10]
[312456906,1705897846433,-500.0,0.0003863,31]
[312456907,1705897846443,-503.31657388,0.0003863,31]
[312456908,1705897846452,-500.0,0.0003863,31]
[312456909,1705897846461,-502.20183492,0.0003863,31]
[312456910,1705897846471,-500.0,0.0003863,31]
[312456911,1705897846480,-502.03435107,0.0003863,31]
[312456912,1705897846489,-505.46110484,0.0003863,31]
[312456913,1705897846499,-500.0,0.0003863,20]
[312456914,1705897846508,-1063.75,0.0003863,31]
[312456915,1705897846518,-505.35438239,0.0003863,31]
[312456916,1705897846527,-500.0,0.0003863,31]
[312456917,1705897846536,-500.0,0.0003863,31]
[312456918,1705897846545,-500.0,0.0003863,31]
[312456919,1705897846555,-500.0,0.0003863,31]
[312456920,1705897846564,-500.0,0.0003863,31]
[312456921,1705897846573,-500.0,0.0003863,31]
[312456922,1705897846582,-501.18123835,0.0003863,31]
[312456923,1705897846591,-500.0,0.0003863,31]
[312456924,1705897846601,-500.0,0.0003863,31]
[312456925,1705897846611,-500.0,0.0003863,31]
[312456926,1705897846620,-500.0,0.0003863,31]
[312456927,1705897846629,-458.52586913,0.0003863,31]
[312456928,1705897846638,-500.0,0.0003863,31]
[312456929,1705897846648,-500.0,0.0003863,31]
[312456930,1705897846657,-500.0,0.0003863,31]
[312456931,1705897846666,-500.0,0.0003863,31]
[312456932,1705897846675,-1193.54,0.0003863,31]
[312456933,1705897846688,-501.89828724,0.0003863,31]
[312456934,1705897846698,-505.56376993,0.0003863,31]
[312456935,1705897846707,-500.0,0.0003863,31]
[312456936,1705897846716,-702.06,0.0003863,31]
[312456937,1705897846727,-500.0,0.0003863,31]
[312456938,1705897846736,-702.06,0.0003863,31]
[312456939,1705897846747,-702.06,0.0003863,31]
[312456940,1705897846756,-702.06,0.0003863,31]
[312456941,1705897846765,-702.06,0.0003863,31]
[312456942,1705897846775,-702.06,0.0003863,31]
[312456943,1705897846786,-702.06,0.0003863,31]
[312456944,1705897846795,-702.06,0.0003863,31]
[312456945,1705897846804,-702.06,0.0003863,31]
[312456946,1705897846813,-702.06,0.0003863,31]
[312456947,1705897846822,-702.06,0.0003863,31]
[312456948,1705897846831,-702.06,0.0003863,31]
[312456949,1705897846841,-702.06,0.0003863,31]
[312456950,1705897846851,-702.06,0.0003863,31]
[312456951,1705897846860,-702.06,0.0003863,31]
[312456952,1705897846870,-702.06,0.0003863,31]
[312456953,1705897846880,-702.06,0.0003863,31]
[312456954,1705897846889,-702.06,0.0003863,31]
[312456955,1705897846899,-702.06,0.0003863,31]
[312456956,1705897846908,-502.62422525,0.0003863,31]
[312456957,1705897846917,-702.06,0.0003863,31]
[312456958,1705897846928,-702.06,0.0003863,31]
[312456959,1705897846937,-702.06,0.0003863,31]
[312456960,1705897846946,-702.06,0.0003863,31]
[312456961,1705897846956,-702.13099755,0.0003863,31]
[312456962,1705897846965,-500.0,0.0003863,31]
[312456963,1705897846973,-1002.89908075,0.0003863,5]
[312456964,1705897846983,-500.0,0.0003863,31]
[312456965,1705897846992,-500.0,0.0003863,31]
[312456966,1705897847001,-500.0,0.0003863,7]
[312456967,1705897847010,-500.0,0.0003863,31]
[312456968,1705897847019,-493.88270056,0.0003863,31]
[312456969,1705897847028,-500.0,0.0003863,31]
[312456970,1705897847037,-500.0,0.0003863,31]
[312456971,1705897847046,-500.0,0.0003863,31]
[312456972,1705897847054,-502.50573028,0.0003863,31]
[312456973,1705897847063,-500.0,0.0003863,31]
[312456974,1705897847072,-500.0,0.0003863,31]
[312456975,1705897847081,-500.0,0.0003863,31]
[312456976,1705897847090,-500.0,0.0003863,31]
[312456977,1705897847099,-2530.99,0.0003863,31]
[312456978,1705897847108,-804.23,0.0003863,31]
[312456979,1705897847117,-150.0,0.0003863,31]
[312456980,1705897847125,-500.0,0.0003863,31]
[312456981,1705897847134,-464.15747196,0.0003863,31]
[312456982,1705897847144,-2905.62,0.0003863,31]
[312456983,1705897847153,-616.97,0.0003863,31]
[312456984,1705897847162,-501.65636611,0.0003863,31]
[312456985,1705897847170,-500.0,0.0003863,31]
[312456986,1705897847180,-500.0,0.0003863,31]
[312456987,1705897847189,-405.08215806,0.0003863,31]
[312456988,1705897847197,-641.43317037,0.0003863,31]
[312456989,1705897847206,-501.18989366,0.0003863,31]
[312456990,1705897847215,-1976.64,0.0003863,31]
[312456991,1705897847224,-501.98682253,0.0003863,31]
[312456992,1705897847233,-500.0,0.0003863,31]
[312456993,1705897847242,-500.0,0.0003863,31]
[312456994,1705897847251,-500.0,0.0003863,31]
[312456995,1705897847260,-500.0,0.0003863,31]
[312456996,1705897847269,-500.0,0.0003863,31]
[312456997,1705897847278,-500.0,0.0003863,31]
[312456998,1705897847286,-500.0,0.0003863,31]
[312456999,1705897847296,-621.71,0.0003863,31]
[312457000,1705897847305,-500.0,0.0003863,31]
[312457001,1705897847314,-500.0,0.0003863,31]
[312457002,1705897847323,-500.0,0.0003863,31]
[312457003,1705897847332,-2359.75,0.0003863,31]
[312457004,1705897847341,-1000.0,0.0003863,2]
[312457005,1705897847350,-502.968745,0.0003863,31]
[312457006,1705897847358,-581.8725791,0.0003863,31]
[312457007,1705897847367,-500.0,0.0003863,31]
[312457008,1705897847376,-501.90183662,0.0003863,31]
[312457009,1705897847385,-1447.45,0.0003863,31]
[312457010,1705897847393,-500.0,0.0003863,31]
[312457011,1705897847402,-500.0,0.0003863,31]
[312457012,1705897847411,-508.76926993,0.0003863,31]
[312457013,1705897847420,-725.96,0.0003863,31]
[312457014,1705897847429,-502.23060497,0.0003863,31]
[312457015,1705897847438,-2270.48,0.0003863,31]
[312457016,1705897847448,-500.0,0.0003863,31]
[312457017,1705897847457,-500.0,0.0003863,31]
[312457018,1705897847465,-503.11091725,0.0003863,31]
[312457019,1705897847474,-1905.14,0.0003863,31]
[312457020,1705897847483,-1407.19,0.0003863,31]
[312457021,1705897847492,-500.0,0.0003863,31]
[312457022,1705897847501,-500.0,0.0003863,31]
[312457023,1705897847510,-500.0,0.0003863,31]
[312457024,1705897847519,-1757.08,0.0003863,31]
[312457025,1705897847529,-503.25238646,0.0003863,31]
[312457026,1705897847538,-500.0,0.0003863,31]
[312457027,1705897847547,-714.12,0.0003863,31]
[312457028,1705897847557,-501.05837074,0.0003863,31]
[312457029,1705897847566,-503.11213762,0.0003863,31]
[312457030,1705897847575,-647.02,0.0003863,31]
[312457031,1705897847584,-500.0,0.0003863,31]
[312457032,1705897847593,-500.0,0.0003863,31]
[312457033,1705897847603,-1582.56,0.0003863,31]
[312457034,1705897847612,-500.0,0.0003863,31]
[312457035,1705897847621,-510.32293522,0.0003863,31]
[312457036,1705897847631,-505.65976221,0.0003863,31]
[312457037,1705897847640,-502.83340354,0.0003863,31]
[312457038,1705897847649,-503.962728,0.0003863,31]
[312457039,1705897847657,-1572.56,0.0003863,31]
[312457040,1705897847667,-500.0,0.0003863,31]
[312457041,1705897847676,-500.0,0.0003863,31]
[312457042,1705897847686,-500.0,0.0003863,31]
[312457043,1705897847696,-2275.57,0.0003863,31]
[312457044,1705897847708,-200.0,0.0003863,31]
[312457045,1705897847716,-500.0,0.0003863,31]
[312457046,1705897847725,-500.0,0.0003863,31]
[312457047,1705897847735,-500.0,0.0003863,31]
[312457048,1705897847744,-24440.94,0.0003863,14]
[312457049,1705897847753,-916.09588536,0.0003863,2]
[312457050,1705897847762,-5367.37,0.0003863,31]
[312457051,1705897847772,-16241.04,0.0003863,31]
[312457052,1705897847782,-501.18089107,0.0003863,31]
[312457053,1705897847791,-500.0,0.0003863,31]
[312457054,1705897847801,-500.0,0.0003863,31]
[312457055,1705897847810,-2578.34,0.0003863,31]
[312457056,1705897847820,-500.0,0.0003863,31]
[312457057,1705897847829,-505.03493219,0.0003863,31]
[312457058,1705897847838,-500.0,0.0003863,31]
[312457059,1705897847847,-504.03088729,0.0003863,31]
[312457060,1705897847856,-502.36758433,0.0003863,31]
[312457061,1705897847866,-745.33,0.0003863,31]
[312457062,1705897847875,-511.82406535,0.0003863,31]
[312457063,1705897847884,-507.4500376,0.0003863,31]
[312457064,1705897847894,-500.0,0.0003863,31]
[312457065,1705897847903,-502.67830291,0.0003863,31]
[312457066,1705897847913,-500.0,0.0003863,31]
[312457067,1705897847922,-995.03,0.0003863,31]
[312457068,1705897847931,-500.0,0.0003863,31]
[312457069,1705897847941,-500.0,0.0003863,31]
[312457070,1705897847950,-2304.68,0.0003863,31]
[312457071,1705897847959,-500.0,0.0003863,30]
[312457072,1705897847968,-500.0,0.0003863,30]
[312457073,1705897847977,-500.0,0.0003863,30]
[312457074,1705897847987,-500.0,0.0003863,30]
[312457075,1705897847997,-794.59,0.0003863,31]
[312457076,1705897848006,-347.71074427,0.0003863,30]
[312457077,1705897848016,-500.0,0.0003863,31]
[312457078,1705897848025,-500.0,0.0003863,31]
[312457079,1705897848034,-500.0,0.0003863,31]
[312457080,1705897848043,-503.73356975,0.0003863,31]
[312457081,1705897848052,-500.0,0.0003863,31]
[312457082,1705897848061,-502.28962555,0.0003863,31]
[312457083,1705897848070,-500.0,0.0003863,31]
[312457084,1705897848079,-236.9533294,0.0003863,31]
[312457085,1705897848088,-237.53663655,0.0003863,31]
[312457086,1705897848097,-509.62,0.0003863,31]
[312457087,1705897848107,-502.48143469,0.0003863,31]
[312457088,1705897848116,-500.0,0.0003863,31]
[312457089,1705897848125,-7508.09,0.0003863,31]
[312457090,1705897848134,-502.07001464,0.0003863,31]
[312457091,1705897848143,-500.0,0.0003863,31]
[312457092,1705897848153,-1183.81,0.0003863,31]
[312457093,1705897848162,-500.89280866,0.0003863,31]
[312457094,1705897848171,-1449.16,0.0003863,31]
[312457095,1705897848180,-1004.01933872,0.0003863,2]
[312457096,1705897848190,-500.0,0.0003863,31]
[312457097,1705897848199,-520.05303069,0.0003863,31]
[312457098,1705897848208,-500.0,0.0003863,31]
[312457099,1705897848217,-503.06191504,0.0003863,31]
[312457100,1705897848227,-500.0,0.0003863,31]
[312457101,1705897848236,-568.44,0.0003863,31]
[312457102,1705897848246,-1076.74,0.0003863,31]
[312457103,1705897848255,-1206.09,0.0003863,31]
[312457104,1705897848264,-1704.36,0.0003863,31]
[312457105,1705897848273,-504.41821264,0.0003863,31]
[312457106,1705897848283,-2096.96,0.0003863,31]
[312457107,1705897848292,-1517.25,0.0003863,31]
[312457108,1705897848302,-503.92517647,0.0003863,31]
[312457109,1705897848311,-502.03211732,0.0003863,31]
[312457110,1705897848320,-500.0,0.0003863,31]
[312457111,1705897848330,-6665.48,0.0003863,31]
[312457112,1705897848340,-363.4881906,0.0003863,31]
[312457113,1705897848349,-500.0,0.0003863,31]
[312457114,1705897848359,-7914.96,0.0003863,31]
[312457115,1705897848368,-500.0,0.0003863,31]
[312457116,1705897848377,-7237.45,0.0003863,31]
[312457117,1705897848386,-559.0919186,0.0003863,31]
[312457118,1705897848395,-357.383015,0.0003863,2]
[312457119,1705897848405,-357.383015,0.0003863,2]
[312457120,1705897848414,-357.383015,0.0003863,2]
[312457121,1705897848423,-357.383015,0.0003863,2]
[312457122,1705897848432,-500.0,0.0003863,2]
[312457123,1705897848441,-500.0,0.0003863,2]
[312457124,1705897848450,-500.0,0.0003863,2]
[312457125,1705897848459,-500.0,0.0003863,2]
[312457126,1705897848557,-316.871441,0.0003863,2]
[312457127,1705897848567,-316.871441,0.0003863,2]
[312457128,1705897848576,-316.871441,0.0003863,2]
[312457129,1705897848585,-316.871441,0.0003863,2]
[312457130,1705897848594,-151.0,0.0003863,2]
[312457131,1705897848603,-151.0,0.0003863,2]
[312457132,1705897848611,-598.464061,0.0003863,2]
[312457133,1705897848621,-598.464061,0.0003863,2]
[312457134,1705897848629,-598.464061,0.0003863,2]
[312457135,1705897848638,-598.464061,0.0003863,2]
[312457136,1705897848647,-10000.0,0.0003863,2]
[312457137,1705897848657,-10000.0,0.0003863,2]
[312457138,1705897848666,-10000.0,0.0003863,2]
[312457139,1705897848675,-10000.0,0.0003863,2]
[312457140,1705897848687,-10000.0,0.0003863,2]
[312457141,1705897848696,-10000.0,0.0003863,2]
[312457142,1705897848704,-10000.0,0.0003863,2]
[312457143,1705897848713,-10000.0,0.0003863,2]
[312457144,1705897848724,-10000.0,0.0003863,2]
[312457145,1705897848733,-10000.0,0.0003863,2]
[312457146,1705897848742,-10000.0,0.0003863,2]
[312457147,1705897848751,-10000.0,0.0003863,2]
[312457148,1705897848761,-157.894736,0.0003866,2]
[312457149,1705897848772,-154.75239617,0.00038675,7]
[312457150,1705897848781,-2839.39403157,0.000387,15]
[312457151,1705897848790,-150.88329784,0.00038792,7]
[312457152,1705897848799,-500.0,0.00038904,31]
[312457153,1705897848808,-500.0,0.00038904,7]
[312457154,1705897848817,-500.0,0.00038904,31]
[312457155,1705897848826,-500.0,0.00038904,31]
[312457156,1705897848835,-500.99033115,0.00038904,31]
[312457157,1705897848844,-349.44193352,0.00038904,31]
[312457158,1705897848853,-500.0,0.00038904,31]
[312457159,1705897848862,-503.71939962,0.00038904,31]
[312457160,1705897848872,-500.0,0.00038904,31]
[312457161,1705897848881,-646.55430956,0.00038904,31]
[312457162,1705897848890,-888.88,0.00038904,31]
[312457163,1705897848899,-500.0,0.00038904,31]
[312457164,1705897848908,-500.0,0.00038904,31]
[312457165,1705897848918,-504.48297448,0.00038904,31]
[312457166,1705897848928,-604.64,0.00038904,31]
[312457167,1705897848937,-341.18132745,0.00038904,7]
[312457168,1705897848946,-500.0,0.00038904,31]
[312457169,1705897848955,-507.7941041,0.00038904,31]
[312457170,1705897848964,-500.0,0.00038904,31]
[312457171,1705897848974,-959.11,0.00038904,31]
[312457172,1705897848983,-500.98480205,0.00038904,31]
[312457173,1705897848992,-1158.88,0.00038904,31]
[312457174,1705897849001,-500.0,0.00038904,31]
[312457175,1705897849011,-500.0,0.00038904,31]
[312457176,1705897849020,-652.87,0.00038904,31]
[312457177,1705897849029,-500.0,0.00038904,31]
[312457178,1705897849038,-500.0,0.00038904,31]
[312457179,1705897849047,-500.0,0.00038904,31]
[312457180,1705897849056,-503.352653,0.00038904,31]
[312457181,1705897849065,-500.0,0.00038904,31]
[312457182,1705897849075,-500.0,0.00038904,31]
[312457183,1705897849084,-500.0,0.00038904,31]
[312457184,1705897849093,-500.0,0.00038904,31]
[312457185,1705897849102,-500.0,0.00038904,31]
[312457186,1705897849111,-582.01,0.00038904,31]
[312457187,1705897849120,-500.0,0.00038904,31]
[312457188,1705897849129,-500.97036519,0.00038904,31]
[312457189,1705897849139,-500.0,0.00038904,31]
[312457190,1705897849148,-500.0,0.00038904,31]
[312457191,1705897849158,-500.0,0.00038904,31]
[312457192,1705897849167,-500.0,0.00038904,31]
[312457193,1705897849177,-500.0,0.00038904,31]
[312457194,1705897849186,-500.0,0.00038904,31]
[312457195,1705897849196,-500.0,0.00038904,31]
[312457196,1705897849205,-500.0,0.00038904,31]
[312457197,1705897849214,-629.83167413,0.00038904,31]
[312457198,1705897849223,-500.0,0.00038904,20]
[312457199,1705897849232,-1063.75,0.00038904,31]
[312457200,1705897849242,-500.0,0.00038904,31]
[312457201,1705897849252,-500.0,0.00038904,31]
[312457202,1705897849261,-503.08171592,0.00038904,31]
[312457203,1705897849270,-500.0,0.00038904,31]
[312457204,1705897849279,-500.0,0.00038904,31]
[312457205,1705897849288,-500.0,0.00038904,31]
[312457206,1705897849300,-163.00278446,0.00038904,31]
[312457207,1705897849309,-500.0,0.00038904,31]
[312457208,1705897849319,-506.86222648,0.00038904,31]
[312457209,1705897849328,-500.0,0.00038904,31]
[312457210,1705897849337,-500.0,0.00038904,31]
[312457211,1705897849346,-500.0,0.00038904,31]
[312457212,1705897849355,-502.45320974,0.00038904,31]
[312457213,1705897849364,-500.0,0.00038904,31]
[312457214,1705897849373,-1193.54,0.00038904,31]
[312457215,1705897849383,-500.0,0.00038904,31]
[312457216,1705897849392,-500.0,0.00038904,31]
[312457217,1705897849401,-500.0,0.00038904,31]
[312457218,1705897849410,-500.0,0.00038904,31]
[312457219,1705897849419,-500.0,0.00038904,31]
[312457220,1705897849429,-500.0,0.00038904,7]
[312457221,1705897849438,-500.0,0.00038904,31]
[312457222,1705897849447,-500.0,0.00038904,31]
[312457223,1705897849455,-500.0,0.00038904,31]
[312457224,1705897849464,-500.0,0.00038904,31]
[312457225,1705897849473,-463.29261474,0.00038904,31]
[312457226,1705897849482,-502.40035702,0.00038904,31]
[312457227,1705897849491,-608.79648994,0.00038904,31]
[312457228,1705897849501,-500.0,0.00038904,31]
[312457229,1705897849509,-2530.99,0.00038904,31]
[312457230,1705897849518,-804.23,0.00038904,31]
[312457231,1705897849527,-150.0,0.00038904,31]
[312457232,1705897849536,-500.0,0.00038904,31]
[312457233,1705897849545,-2905.62,0.00038904,31]
[312457234,1705897849554,-616.97,0.00038904,31]
[312457235,1705897849563,-503.49950782,0.00038904,31]
[312457236,1705897849572,-501.38953766,0.00038904,31]
[312457237,1705897849581,-1976.64,0.00038904,31]
[312457238,1705897849590,-540.46243249,0.00038904,31]
[312457239,1705897849600,-502.82862532,0.00038904,31]
[312457240,1705897849609,-587.35290045,0.00038904,31]
[312457241,1705897849618,-502.70538727,0.00038904,31]